[Event "V Open LLucmajor"]
[Site "LLucmajor"]
[Date "2016.05.14"]
[Round "7"]
[White "Minzer, Claudio Javier"]
[Black "Winants, Luc"]
[Result "1/2-1/2"]
[ECO "B31"]
[WhiteElo "2432"]
[BlackElo "2562"]
[PlyCount "109"]
[EventDate "2016.??.??"]
[EventCountry "ESP"]
[TimeControl "5400+30"]
[WhiteClock "0:12:25"]
[BlackClock "0:10:52"]

1. Nf3 {[%emt 0:00:03]} c5 {[%emt 0:01:38]} 2. e4 {[%emt 0:01:50]} Nc6 {
[%emt 0:00:43]} 3. Bb5 {[%emt 0:00:38]} g6 {[%emt 0:00:59]} 4. O-O {[%emt 0:00:
42]} Bg7 {[%emt 0:00:09]} 5. Re1 {[%emt 0:00:26]} Nf6 {[%emt 0:01:49]} 6. e5 {
[%emt 0:00:45]} Nd5 {[%emt 0:00:07]} 7. Nc3 {[%emt 0:00:16]} Nc7 {[%emt 0:00:
10]} 8. Bxc6 {[%emt 0:00:20]} dxc6 {[%emt 0:00:06]} 9. Ne4 {[%emt 0:00:20]} Ne6
{[%emt 0:00:27]} 10. d3 {[%emt 0:01:54]} O-O {[%emt 0:03:26]} 11. Be3 {[%emt 0:
01:19]} b6 {[%emt 0:00:17]} 12. Qd2 {[%emt 0:00:48]} Re8 {[%emt 0:06:59]} 13.
h4 {[%emt 0:08:18]} Nd4 {[%emt 0:14:25]} 14. Nxd4 {[%emt 0:04:15]} cxd4 {
[%emt 0:00:07]} 15. Bf4 {[%emt 0:00:13]} Qd5 {[%emt 0:02:21]} 16. Ng3 {[%emt 0:
08:26]} c5 {[%emt 0:01:25]} 17. h5 {[%emt 0:01:04]} Bb7 {[%emt 0:00:47]} 18. f3
{[%emt 0:00:08]} Rac8 {[%emt 0:00:45]} 19. b3 {[%emt 0:06:08]} Rc6 {[%emt 0:00:
50]} 20. Re2 {[%emt 0:03:05]} b5 {[%emt 0:00:37]} 21. Rae1 {[%emt 0:02:18]} Re6
{[%emt 0:01:33]} 22. hxg6 {[%emt 0:01:58]} hxg6 {[%emt 0:00:51]} 23. Nh1 {
[%emt 0:06:30]} Rc8 {[%emt 0:08:32]} 24. Nf2 {[%emt 0:00:51]} c4 {[%emt 0:00:
07]} 25. Ng4 {[%emt 0:03:05]} cxd3 {[%emt 0:00:36]} 26. cxd3 {[%emt 0:00:46]}
Rec6 {[%emt 0:15:23]} 27. Bh6 {[%emt 0:02:22]} Bh8 {[%emt 0:00:08]} 28. Qf4 {
[%emt 0:07:48]} Qe6 {[%emt 0:01:38]} 29. Bg5 {[%emt 0:01:31]} Rc2 {[%emt 0:04:
49]} 30. Qxd4 {[%emt 0:02:15]} Rxe2 {[%emt 0:01:01]} 31. Rxe2 {[%emt 0:00:01]}
a6 {[%emt 0:01:12]} 32. Kf2 {[%emt 0:04:38]} Kf8 {[%emt 0:03:19]} 33. Qb4 {
[%emt 0:03:13]} Rc7 {[%emt 0:02:25]} 34. d4 {[%emt 0:00:48]} Bg7 {[%emt 0:01:
35]} 35. Qd2 {[%emt 0:01:03]} Kg8 {[%emt 0:02:14]} 36. Qf4 {[%emt 0:02:50]} Qf5
{[%emt 0:01:58]} 37. Qxf5 {[%emt 0:05:30]} gxf5 {[%emt 0:00:06]} 38. Ne3 {
[%emt 0:00:05]} e6 {[%emt 0:00:17]} 39. g4 {[%emt 0:00:21]} fxg4 {[%emt 0:01:
29]} 40. Nxg4 {[%emt 0:00:03]} Kh7 {[%emt 0:01:26]} 41. Kg3 {[%emt 0:01:16]}
Rc3 {[%emt 0:01:27]} 42. Be3 {[%emt 0:00:32]} Kg6 {[%emt 0:00:48]} 43. Rh2 {
[%emt 0:02:34]} a5 {[%emt 0:00:51]} 44. Rh1 {[%emt 0:01:06]} a4 {[%emt 0:01:25]
} 45. Rc1 {[%emt 0:00:41]} Rd3 {[%emt 0:02:36]} 46. bxa4 {[%emt 0:02:23]} bxa4
{[%emt 0:00:07]} 47. Kf4 {[%emt 0:00:10]} Ra3 {[%emt 0:05:10]} 48. Rg1 {
[%emt 0:00:44]} f5 {[%emt 0:02:16]} 49. exf6 {[%emt 0:02:22]} Bxf6 {[%emt 0:00:
11]} 50. Ne5+ {[%emt 0:00:33]} Kh7 {[%emt 0:00:27]} 51. Rh1+ {[%emt 0:03:11]}
Kg7 {[%emt 0:00:18]} 52. Rg1+ {[%emt 0:00:01]} Kh7 {[%emt 0:00:30]} 53. Rh1+ {
[%emt 0:00:04]} Kg7 {[%emt 0:00:46]} 54. Rg1+ {[%emt 0:00:04]} Kf8 55. Bd2 {Kg7
} 1/2-1/2

[Event "V Open LLucmajor"]
[Site "LLucmajor"]
[Date "2016.05.14"]
[Round "7"]
[White "Paunovic, Dragan"]
[Black "Fedorchuk, Sergey A"]
[Result "1/2-1/2"]
[ECO "A04"]
[WhiteElo "2439"]
[BlackElo "2626"]
[PlyCount "102"]
[EventDate "2016.??.??"]
[EventCountry "ESP"]
[TimeControl "5400+30"]
[WhiteClock "0:03:10"]
[BlackClock "0:02:02"]

1. Nf3 {[%emt 0:00:05]} e6 2. c4 {[%emt 0:00:26]} b6 {[%emt 0:06:31]} 3. g3 {
[%emt 0:00:09]} Bb7 {[%emt 0:01:06]} 4. Bg2 {[%emt 0:00:30]} f5 {[%emt 0:00:15]
} 5. O-O {[%emt 0:00:28]} Nf6 {[%emt 0:00:09]} 6. d4 {[%emt 0:00:44]} Be7 {
[%emt 0:03:35]} 7. b3 {[%emt 0:02:58]} O-O {[%emt 0:03:15]} 8. Bb2 {[%emt 0:01:
52]} Qe8 {[%emt 0:02:58]} 9. Nc3 {[%emt 0:09:49]} Ne4 {[%emt 0:02:00]} 10. d5 {
[%emt 0:00:33]} Bf6 {[%emt 0:30:05]} 11. Nd4 {[%emt 0:22:58]} Na6 {[%emt 0:00:
27]} 12. Nxe4 {[%emt 0:00:30]} fxe4 13. Bxe4 exd5 {[%emt 0:01:14]} 14. Bxd5+ {
[%emt 0:00:54]} Bxd5 {[%emt 0:00:07]} 15. cxd5 {[%emt 0:00:06]} Qe4 {[%emt 0:
01:17]} 16. e3 {[%emt 0:00:25]} Qxd5 {[%emt 0:07:18]} 17. Qe2 {[%emt 0:00:54]}
Nc5 {[%emt 0:04:29]} 18. Rad1 Qf7 {[%emt 0:02:26]} 19. Ba3 {[%emt 0:04:54]} d6
{[%emt 0:04:36]} 20. Qc2 {[%emt 0:04:05]} a5 {[%emt 0:03:05]} 21. Nb5 {[%emt 0:
05:07]} a4 22. b4 {[%emt 0:00:22]} Ne6 {[%emt 0:02:37]} 23. f4 Qe8 {[%emt 0:01:
28]} 24. Qc4 {[%emt 0:02:44]} Kh8 {[%emt 0:01:12]} 25. e4 {[%emt 0:04:21]} Rf7
{[%emt 0:04:42]} 26. Rf2 Re7 27. Bb2 {[%emt 0:17:54]} Bxb2 {[%emt 0:02:56]} 28.
Rxb2 {[%emt 0:00:03]} Rd8 29. Rbd2 {[%emt 0:04:42]} h6 {[%emt 0:02:00]} 30. Nc3
{[%emt 0:05:39]} a3 {[%emt 0:02:46]} 31. h4 Nf8 {[%emt 0:05:28]} 32. e5 {
[%emt 0:01:47]} Rc8 {[%emt 0:00:45]} 33. Nd5 {[%emt 0:00:51]} Rd7 34. Qe4 {
[%emt 0:03:58]} dxe5 {[%emt 0:01:29]} 35. fxe5 {[%emt 0:00:05]} Qg6 {[%emt 0:
05:53]} 36. Qxg6 {[%emt 0:01:24]} Nxg6 {[%emt 0:00:01]} 37. e6 {[%emt 0:02:24]}
Rd6 {[%emt 0:00:05]} 38. Nf4 {[%emt 0:00:36]} Rxd2 {[%emt 0:01:53]} 39. Rxd2 {
[%emt 0:00:17]} Kh7 {[%emt 0:00:18]} 40. h5 {[%emt 0:00:31]} Nxf4 {[%emt 0:00:
38]} 41. gxf4 {[%emt 0:00:04]} Rf8 {[%emt 0:00:44]} 42. Rd4 {[%emt 0:01:18]} c5
{[%emt 0:00:15]} 43. bxc5 {[%emt 0:00:28]} bxc5 {[%emt 0:00:03]} 44. Ra4 {
[%emt 0:00:19]} Rc8 {[%emt 0:01:07]} 45. Rxa3 {[%emt 0:01:46]} c4 {[%emt 0:00:
02]} 46. Rc3 {[%emt 0:00:05]} g5 {[%emt 0:00:49]} 47. fxg5 {[%emt 0:01:04]}
hxg5 {[%emt 0:00:03]} 48. Kf2 {[%emt 0:00:11]} Kh6 {[%emt 0:00:32]} 49. e7 {
[%emt 0:00:24]} Re8 {[%emt 0:00:11]} 50. Rxc4 {[%emt 0:01:32]} Rxe7 {[%emt 0:
00:05]} 51. a4 {[%emt 0:00:04]} Ra7 {[%emt 0:00:33]} 1/2-1/2

[Event "V Open LLucmajor"]
[Site "LLucmajor"]
[Date "2016.05.14"]
[Round "7"]
[White "Stremavicius, Titas"]
[Black "Movsziszian, Karen"]
[Result "1/2-1/2"]
[ECO "A41"]
[WhiteElo "2443"]
[BlackElo "2468"]
[PlyCount "55"]
[EventDate "2016.??.??"]
[EventCountry "ESP"]
[TimeControl "5400+30"]
[WhiteClock "0:38:02"]
[BlackClock "0:29:24"]

1. d4 {[%emt 0:04:09]} d6 {[%emt 0:00:00]} 2. c4 {[%emt 0:00:29]} Nd7 {[%emt 0:
00:06]} 3. Nc3 {[%emt 0:01:41]} e5 {[%emt 0:00:04]} 4. e4 {[%emt 0:02:33]} Ngf6
{[%emt 0:00:02]} 5. Nf3 {[%emt 0:08:13]} g6 {[%emt 0:00:12]} 6. Be2 {[%emt 0:
03:00]} Bg7 {[%emt 0:00:01]} 7. Be3 {[%emt 0:00:46]} O-O {[%emt 0:00:26]} 8. d5
{[%emt 0:00:42]} Ng4 {[%emt 0:00:21]} 9. Bg5 {[%emt 0:00:11]} f6 {[%emt 0:00:
03]} 10. Bh4 {[%emt 0:00:13]} Nh6 {[%emt 0:04:14]} 11. Nd2 {[%emt 0:03:20]} a5
{[%emt 0:14:30]} 12. a3 {[%emt 0:06:31]} g5 {[%emt 0:03:22]} 13. Bg3 {[%emt 0:
00:02]} f5 {[%emt 0:00:04]} 14. exf5 {[%emt 0:01:48]} Nxf5 {[%emt 0:00:46]} 15.
Nde4 {[%emt 0:00:31]} h6 {[%emt 0:00:44]} 16. O-O {[%emt 0:07:53]} Nf6 {
[%emt 0:01:00]} 17. c5 {[%emt 0:02:12]} Nd4 {[%emt 0:01:41]} 18. Nxf6+ {
[%emt 0:03:17]} Qxf6 {[%emt 0:02:54]} 19. cxd6 {[%emt 0:00:07]} Nxe2+ {[%emt 0:
04:10]} 20. Qxe2 {[%emt 0:00:34]} cxd6 {[%emt 0:00:02]} 21. Rac1 {[%emt 0:03:
40]} Bf5 {[%emt 0:01:10]} 22. Nb5 {[%emt 0:06:07]} Qg6 {[%emt 0:05:21]} 23. Rc3
{[%emt 0:00:25]} Rf7 {[%emt 0:07:38]} 24. h4 {[%emt 0:01:01]} gxh4 {[%emt 0:17:
31]} 25. Bxh4 {[%emt 0:00:12]} Bg4 {[%emt 0:00:09]} 26. Qc2 {[%emt 0:02:54]}
Bf5 {[%emt 0:06:14]} 27. Qe2 {[%emt 0:02:57]} Bg4 {[%emt 0:01:21]} 28. Qc2
1/2-1/2

[Event "V Open LLucmajor"]
[Site "LLucmajor"]
[Date "2016.05.13"]
[Round "6"]
[White "Abergel, Thal"]
[Black "Kohlweyer, Bernd"]
[Result "1/2-1/2"]
[ECO "B10"]
[WhiteElo "2450"]
[BlackElo "2373"]
[PlyCount "73"]
[EventDate "2016.??.??"]
[EventCountry "ESP"]
[TimeControl "5400+30"]
[WhiteClock "0:12:48"]
[BlackClock "0:14:34"]

1. e4 {[%emt 0:00:00]} c6 {[%emt 0:00:00]} 2. Ne2 {[%emt 0:00:00]} d5 {[%emt 0:
00:18]} 3. e5 {[%emt 0:00:00]} d4 {[%emt 0:00:52]} 4. b4 {[%emt 0:00:01]} Nd7 {
[%emt 0:00:44]} 5. f4 {[%emt 0:04:33]} Nb6 {[%emt 0:01:03]} 6. Bb2 {[%emt 0:03:
34]} Bg4 {[%emt 0:00:34]} 7. h3 {[%emt 0:02:15]} Bxe2 {[%emt 0:00:09]} 8. Bxe2
{[%emt 0:00:29]} e6 {[%emt 0:01:15]} 9. O-O {[%emt 0:01:21]} Bxb4 {[%emt 0:00:
26]} 10. Bd3 {[%emt 0:07:48]} Ne7 {[%emt 0:03:57]} 11. Qf3 {[%emt 0:03:45]} Na4
{[%emt 0:04:48]} 12. Ba3 {[%emt 0:02:22]} Qb6 {[%emt 0:00:45]} 13. Kh2 {
[%emt 0:03:17]} Qc5 {[%emt 0:06:16]} 14. Bxb4 {[%emt 0:06:33]} Qxb4 {[%emt 0:
00:06]} 15. c3 {[%emt 0:00:08]} Qb2 {[%emt 0:05:05]} 16. cxd4 {[%emt 0:02:12]}
Qxd4 {[%emt 0:06:53]} 17. Nc3 {[%emt 0:00:37]} O-O-O {[%emt 0:01:38]} 18. Bc2 {
[%emt 0:01:53]} Nxc3 {[%emt 0:00:33]} 19. dxc3 {[%emt 0:00:10]} Qc5 {[%emt 0:
00:04]} 20. Rad1 {[%emt 0:06:21]} g6 {[%emt 0:00:55]} 21. Be4 {[%emt 0:05:30]}
h5 {[%emt 0:00:41]} 22. Rd4 {[%emt 0:03:05]} Rxd4 {[%emt 0:06:30]} 23. cxd4 {
[%emt 0:00:26]} Qxd4 {[%emt 0:00:05]} 24. Rd1 {[%emt 0:16:25]} Qc5 {[%emt 0:00:
31]} 25. Qb3 {[%emt 0:05:57]} Nd5 {[%emt 0:02:53]} 26. Rb1 {[%emt 0:02:27]} Nb6
{[%emt 0:00:41]} 27. Bxg6 {[%emt 0:02:40]} Qe7 {[%emt 0:28:12]} 28. Be4 {
[%emt 0:00:46]} h4 {[%emt 0:00:50]} 29. Qe3 {[%emt 0:02:35]} Kb8 {[%emt 0:01:
28]} 30. a4 {[%emt 0:00:29]} Nd5 {[%emt 0:00:23]} 31. Bxd5 {[%emt 0:00:29]}
exd5 {[%emt 0:01:27]} 32. Qd4 {[%emt 0:03:12]} Re8 {[%emt 0:00:52]} 33. Re1 {
[%emt 0:00:23]} Qd7 {[%emt 0:02:54]} 34. Rf1 {[%emt 0:03:13]} Qe7 {[%emt 0:03:
33]} 35. Re1 {[%emt 0:00:13]} Qd7 {[%emt 0:00:20]} 36. Rf1 {[%emt 0:00:03]} Qe7
{[%emt 0:05:45]} 37. Re1 1/2-1/2

[Event "V Open LLucmajor"]
[Site "LLucmajor"]
[Date "2016.05.13"]
[Round "6"]
[White "Lacrosse, Marc"]
[Black "Kolotilina, Liudmila"]
[Result "1-0"]
[ECO "D31"]
[WhiteElo "2253"]
[BlackElo "2136"]
[PlyCount "63"]
[EventDate "2016.??.??"]
[EventCountry "ESP"]
[TimeControl "5400+30"]

1. d4 d5 2. c4 e6 3. Nc3 c6 4. e4 dxe4 5. Nxe4 Bb4+ 6. Nc3 Nf6 7. Nf3 c5 8. Be3
Nc6 9. a3 cxd4 10. Nxd4 Bxc3+ 11. bxc3 O-O 12. Be2 Bd7 13. O-O e5 14. Nb5 Qe7
15. Nc7 Rad8 16. Nd5 Qd6 17. Bg5 Bf5 18. Bxf6 gxf6 19. Qb3 Kh8 20. Rfd1 b6 21.
Qa4 Rc8 22. Ne3 Qe6 23. c5 Rg8 24. Bc4 Qe7 25. Nxf5 Qxc5 26. Nd6 Nd4 27. cxd4
Qxd6 28. dxe5 Qxe5 29. Bxf7 Rg7 30. Re1 b5 31. Rxe5 bxa4 32. Re8+ 1-0

[Event "V Open LLucmajor"]
[Site "LLucmajor"]
[Date "2016.05.13"]
[Round "6"]
[White "Ochsner, Bjorn Moller"]
[Black "Edouard, Romain"]
[Result "0-1"]
[ECO "D37"]
[WhiteElo "2397"]
[BlackElo "2641"]
[PlyCount "116"]
[EventDate "2016.??.??"]
[EventCountry "ESP"]
[TimeControl "5400+30"]
[WhiteClock "0:00:54"]
[BlackClock "0:01:55"]

1. Nf3 {[%emt 0:00:00]} d5 {[%emt 0:03:34]} 2. d4 {[%emt 0:00:00]} Nf6 {
[%emt 0:00:11]} 3. c4 {[%emt 0:00:03]} e6 {[%emt 0:00:49]} 4. Nc3 {[%emt 0:00:
48]} dxc4 {[%emt 0:00:57]} 5. e3 {[%emt 0:03:03]} a6 {[%emt 0:00:20]} 6. a4 {
[%emt 0:02:22]} b6 {[%emt 0:00:41]} 7. Bxc4 {[%emt 0:00:24]} Bb7 {[%emt 0:00:
04]} 8. O-O {[%emt 0:01:00]} Bb4 {[%emt 0:00:25]} 9. Qb3 {[%emt 0:13:53]} Qe7 {
[%emt 0:06:15]} 10. Bd2 {[%emt 0:06:31]} O-O {[%emt 0:02:09]} 11. Ne4 {[%emt 0:
04:57]} Bxd2 {[%emt 0:00:38]} 12. Nexd2 {[%emt 0:01:35]} Nc6 {[%emt 0:02:20]}
13. a5 {[%emt 0:05:20]} b5 {[%emt 0:04:07]} 14. Be2 {[%emt 0:02:15]} e5 {
[%emt 0:00:05]} 15. dxe5 {[%emt 0:05:06]} Nxe5 {[%emt 0:01:05]} 16. Nxe5 {
[%emt 0:02:18]} Qxe5 {[%emt 0:00:11]} 17. Bf3 {[%emt 0:10:25]} Bxf3 {[%emt 0:
00:34]} 18. Nxf3 {[%emt 0:00:02]} Qe7 {[%emt 0:00:12]} 19. Rfd1 {[%emt 0:02:21]
} c5 {[%emt 0:01:37]} 20. Qd3 {[%emt 0:03:34]} Rfd8 {[%emt 0:02:19]} 21. Qf5 {
[%emt 0:00:39]} Rd6 {[%emt 0:01:02]} 22. Rac1 {[%emt 0:07:15]} Rad8 {[%emt 0:
06:11]} 23. Rxd6 {[%emt 0:02:04]} Qxd6 {[%emt 0:00:06]} 24. h3 {[%emt 0:03:30]}
c4 {[%emt 0:00:08]} 25. Nd4 {[%emt 0:04:45]} g6 {[%emt 0:01:05]} 26. Qf3 {
[%emt 0:02:27]} Nd5 {[%emt 0:00:52]} 27. Rd1 {[%emt 0:01:10]} Nb4 {[%emt 0:01:
25]} 28. Qb7 {[%emt 0:02:23]} Qf6 {[%emt 0:04:44]} 29. Rd2 {[%emt 0:02:10]} Nd3
{[%emt 0:02:25]} 30. b3 {[%emt 0:02:32]} Nc5 {[%emt 0:04:16]} 31. Qc7 {[%emt 0:
04:40]} Ne4 {[%emt 0:00:33]} 32. Re2 {[%emt 0:02:39]} cxb3 {[%emt 0:04:01]} 33.
f3 {[%emt 0:00:08]} Ng5 {[%emt 0:02:54]} 34. Nxb3 {[%emt 0:00:49]} Rd1+ {
[%emt 0:01:45]} 35. Kh2 {[%emt 0:00:00]} Ne6 {[%emt 0:01:07]} 36. Qc2 {[%emt 0:
02:06]} Rf1 {[%emt 0:01:09]} 37. Qe4 {[%emt 0:01:15]} Qd8 {[%emt 0:15:29]} 38.
Rd2 {[%emt 0:01:00]} Qc7+ {[%emt 0:00:10]} 39. f4 {[%emt 0:00:47]} Kg7 {
[%emt 0:07:57]} 40. Rc2 {[%emt 0:00:43]} Qd6 {[%emt 0:03:28]} 41. Rd2 {[%emt 0:
00:03]} Qc7 {[%emt 0:02:11]} 42. Rc2 {[%emt 0:00:02]} Qd8 {[%emt 0:00:03]} 43.
Qe5+ {[%emt 0:00:35]} Kh6 {[%emt 0:00:04]} 44. Nc5 {[%emt 0:01:31]} Nxc5 {
[%emt 0:02:24]} 45. Rxc5 {[%emt 0:00:09]} f6 {[%emt 0:00:01]} 46. Qe6 {[%emt 0:
00:53]} Rd1 {[%emt 0:06:00]} 47. Rc6 {[%emt 0:00:36]} Re1 {[%emt 0:03:31]} 48.
Qf7 {[%emt 0:00:32]} Rxe3 {[%emt 0:00:54]} 49. Rc7 {[%emt 0:00:25]} Qh8 {
[%emt 0:00:03]} 50. g4 {[%emt 0:00:06]} b4 51. Kg2 b3 {[%emt 0:03:03]} 52. Kf2
{[%emt 0:01:27]} Rxh3 {[%emt 0:01:22]} 53. Rb7 {[%emt 0:00:38]} b2 {[%emt 0:04:
52]} 54. Kg2 {[%emt 0:00:24]} Re3 {[%emt 0:00:38]} 55. Rxb2 {[%emt 0:00:36]}
Qc8 {[%emt 0:00:48]} 56. f5 {[%emt 0:00:32]} Qc6+ {[%emt 0:00:44]} 57. Kh2 {
[%emt 0:00:08]} Qd6+ {[%emt 0:00:28]} 58. Kh1 Rh3+ {[%emt 0:00:39]} 0-1

[Event "V Open LLucmajor"]
[Site "LLucmajor"]
[Date "2016.05.13"]
[Round "6"]
[White "Pap, Misa"]
[Black "Granda Zuniga, Julio E"]
[Result "0-1"]
[ECO "C01"]
[WhiteElo "2484"]
[BlackElo "2686"]
[PlyCount "110"]
[EventDate "2016.??.??"]
[EventCountry "ESP"]
[TimeControl "5400+30"]
[WhiteClock "0:07:01"]
[BlackClock "0:02:52"]

1. e4 {[%emt 0:00:00]} e6 {[%emt 0:00:05]} 2. d4 {[%emt 0:00:00]} d5 {[%emt 0:
00:04]} 3. exd5 {[%emt 0:00:00]} exd5 {[%emt 0:00:06]} 4. Nf3 {[%emt 0:00:45]}
Bd6 {[%emt 0:00:42]} 5. Bd3 {[%emt 0:00:31]} Ne7 {[%emt 0:00:19]} 6. O-O {
[%emt 0:00:11]} O-O {[%emt 0:00:15]} 7. c3 {[%emt 0:00:48]} Nbc6 {[%emt 0:05:
49]} 8. Qc2 {[%emt 0:09:50]} g6 {[%emt 0:14:41]} 9. Re1 {[%emt 0:10:58]} Bf5 {
[%emt 0:00:52]} 10. Bh6 {[%emt 0:01:29]} Re8 {[%emt 0:00:23]} 11. Nbd2 {
[%emt 0:00:14]} Qd7 {[%emt 0:01:24]} 12. Nf1 {[%emt 0:07:51]} f6 {[%emt 0:03:
55]} 13. Ne3 {[%emt 0:13:45]} Be6 {[%emt 0:19:25]} 14. Nf1 {[%emt 0:01:38]} Nd8
{[%emt 0:01:40]} 15. Bd2 {[%emt 0:11:47]} Nf7 16. h4 Kg7 {[%emt 0:06:57]} 17.
Qc1 {[%emt 0:08:13]} Bg4 {[%emt 0:03:46]} 18. N1h2 {[%emt 0:02:17]} Bf5 {
[%emt 0:00:30]} 19. Bxf5 {[%emt 0:01:06]} Nxf5 {[%emt 0:00:46]} 20. Qc2 {
[%emt 0:03:54]} Bxh2+ {[%emt 0:09:47]} 21. Kxh2 {[%emt 0:00:05]} N5d6 {[%emt 0:
00:59]} 22. Bf4 {[%emt 0:03:36]} Ne4 {[%emt 0:04:50]} 23. Kg1 {[%emt 0:02:22]}
c6 {[%emt 0:00:26]} 24. Nd2 {[%emt 0:02:44]} Ned6 {[%emt 0:09:00]} 25. Bxd6 {
[%emt 0:00:27]} Nxd6 {[%emt 0:00:05]} 26. Qd3 {[%emt 0:01:16]} Re6 {[%emt 0:02:
04]} 27. Rxe6 {[%emt 0:01:28]} Qxe6 {[%emt 0:00:02]} 28. Nf3 {[%emt 0:05:16]}
Qe4 {[%emt 0:02:54]} 29. Qxe4 {[%emt 0:02:02]} dxe4 {[%emt 0:00:02]} 30. Nd2 {
[%emt 0:00:16]} f5 {[%emt 0:00:03]} 31. Re1 {[%emt 0:00:23]} Re8 {[%emt 0:00:
02]} 32. g3 {[%emt 0:01:06]} Kf6 {[%emt 0:00:28]} 33. f3 {[%emt 0:00:38]} exf3
{[%emt 0:07:23]} 34. Rxe8 {[%emt 0:00:05]} Nxe8 {[%emt 0:00:03]} 35. Nxf3 {
[%emt 0:00:04]} f4 {[%emt 0:00:19]} 36. gxf4 {[%emt 0:02:28]} Kf5 {[%emt 0:00:
01]} 37. Kg2 {[%emt 0:01:11]} Kxf4 {[%emt 0:00:12]} 38. Ng5 {[%emt 0:00:05]} h5
{[%emt 0:01:04]} 39. Ne6+ {[%emt 0:00:44]} Kg4 {[%emt 0:00:15]} 40. Nf8 {
[%emt 0:00:08]} Kf5 {[%emt 0:00:12]} 41. Kf3 {[%emt 0:01:31]} Nf6 {[%emt 0:02:
32]} 42. c4 {[%emt 0:00:04]} Ne4 {[%emt 0:00:19]} 43. b3 {[%emt 0:00:23]} g5 {
[%emt 0:02:24]} 44. hxg5 {[%emt 0:00:05]} Nxg5+ {[%emt 0:01:29]} 45. Kg3 Ke4
46. Kh4 {[%emt 0:01:06]} Nf3+ {[%emt 0:00:34]} 47. Kxh5 Nxd4 {[%emt 0:00:23]}
48. Kg4 {[%emt 0:00:45]} c5 {[%emt 0:00:44]} 49. Kg3 {[%emt 0:02:11]} b6 {
[%emt 0:00:33]} 50. Kf2 {[%emt 0:00:03]} Kd3 {[%emt 0:00:21]} 51. Ng6 {[%emt 0:
01:00]} Kc3 {[%emt 0:00:12]} 52. Ke3 {[%emt 0:01:04]} Kb2 {[%emt 0:00:27]} 53.
Kd3 {[%emt 0:00:08]} Nc6 {[%emt 0:02:22]} 54. Nf4 {[%emt 0:00:22]} Nb4+ {
[%emt 0:00:15]} 55. Kd2 {[%emt 0:00:06]} Nxa2 {[%emt 0:00:13]} 0-1

[Event "V Open LLucmajor"]
[Site "LLucmajor"]
[Date "2016.05.13"]
[Round "6"]
[White "Rakhmanov, Aleksandr"]
[Black "Manik, Mikulas"]
[Result "1/2-1/2"]
[ECO "A05"]
[WhiteElo "2654"]
[BlackElo "2428"]
[PlyCount "48"]
[EventDate "2016.??.??"]
[EventCountry "ESP"]
[TimeControl "5400+30"]
[WhiteClock "0:15:10"]
[BlackClock "0:32:43"]

1. Nf3 {[%emt 0:00:00]} Nf6 {[%emt 0:00:00]} 2. g3 {[%emt 0:00:02]} g6 {
[%emt 0:00:06]} 3. b3 {[%emt 0:00:10]} Bg7 {[%emt 0:08:53]} 4. Bb2 {[%emt 0:04:
16]} b5 {[%emt 0:03:18]} 5. Na3 {[%emt 0:00:33]} a6 {[%emt 0:01:22]} 6. c4 {
[%emt 0:05:24]} c6 {[%emt 0:00:22]} 7. Bg2 {[%emt 0:08:50]} Bb7 {[%emt 0:00:41]
} 8. O-O {[%emt 0:06:37]} O-O {[%emt 0:01:09]} 9. d4 {[%emt 0:14:05]} d5 {
[%emt 0:05:41]} 10. c5 {[%emt 0:03:47]} Ne4 {[%emt 0:13:25]} 11. Qc2 {[%emt 0:
07:56]} Nd7 {[%emt 0:04:40]} 12. Ne1 a5 {[%emt 0:02:06]} 13. f3 {[%emt 0:02:14]
} b4 {[%emt 0:00:26]} 14. Nb1 {[%emt 0:04:08]} Nc3 15. e3 Nxb1 {[%emt 0:04:31]}
16. Rxb1 {[%emt 0:04:19]} Ba6 {[%emt 0:00:21]} 17. Nd3 {[%emt 0:05:44]} e5 {
[%emt 0:13:25]} 18. Rfe1 Bxd3 {[%emt 0:00:08]} 19. Qxd3 {[%emt 0:00:37]} Re8 {
[%emt 0:02:08]} 20. Qd2 exd4 21. exd4 {[%emt 0:08:27]} Qf6 {[%emt 0:02:44]} 22.
Bh3 Rxe1+ {[%emt 0:00:58]} 23. Rxe1 {[%emt 0:09:36]} Nxc5 {[%emt 0:02:46]} 24.
dxc5 {[%emt 0:00:05]} Qxb2 {[%emt 0:00:07]} 1/2-1/2

[Event "V Open LLucmajor"]
[Site "LLucmajor"]
[Date "2016.05.13"]
[Round "6"]
[White "Rasmussen, Allan Stig"]
[Black "Almagro Llamas, Pablo"]
[Result "0-1"]
[ECO "B90"]
[WhiteElo "2495"]
[BlackElo "2422"]
[PlyCount "82"]
[EventDate "2016.??.??"]
[EventCountry "ESP"]
[TimeControl "5400+30"]
[WhiteClock "0:00:32"]
[BlackClock "0:01:22"]

1. e4 {[%emt 0:00:00]} c5 {[%emt 0:00:14]} 2. Nf3 {[%emt 0:00:00]} d6 {[%emt 0:
00:23]} 3. d4 {[%emt 0:00:00]} cxd4 {[%emt 0:00:06]} 4. Nxd4 {[%emt 0:00:00]}
Nf6 {[%emt 0:00:13]} 5. Nc3 {[%emt 0:00:00]} a6 {[%emt 0:01:06]} 6. Nb3 {
[%emt 0:00:15]} e6 {[%emt 0:03:20]} 7. g4 {[%emt 0:00:13]} b5 {[%emt 0:06:40]}
8. Bg2 {[%emt 0:00:31]} Bb7 {[%emt 0:00:11]} 9. g5 {[%emt 0:00:29]} Nfd7 {
[%emt 0:00:28]} 10. h4 {[%emt 0:02:31]} Nc6 {[%emt 0:06:33]} 11. Qe2 {[%emt 0:
05:19]} b4 {[%emt 0:05:06]} 12. Na4 {[%emt 0:22:21]} a5 {[%emt 0:02:23]} 13.
Qe3 {[%emt 0:04:08]} Nce5 {[%emt 0:11:59]} 14. Nd4 {[%emt 0:04:01]} Nc4 {
[%emt 0:08:15]} 15. Qh3 {[%emt 0:03:06]} Ndb6 {[%emt 0:09:27]} 16. Nxb6 {
[%emt 0:02:03]} Qxb6 {[%emt 0:00:49]} 17. Ne2 {[%emt 0:15:08]} Rc8 {[%emt 0:05:
49]} 18. O-O {[%emt 0:08:29]} Ba6 {[%emt 0:03:41]} 19. Re1 {[%emt 0:01:50]} d5
{[%emt 0:09:56]} 20. Nf4 {[%emt 0:03:57]} Bc5 {[%emt 0:05:05]} 21. Nd3 {
[%emt 0:00:14]} dxe4 {[%emt 0:00:16]} 22. Nxc5 {[%emt 0:07:28]} Qxc5 {[%emt 0:
00:08]} 23. Bxe4 {[%emt 0:00:39]} O-O {[%emt 0:02:15]} 24. a3 {[%emt 0:02:58]}
Nd6 {[%emt 0:07:47]} 25. axb4 {[%emt 0:00:28]} Qxb4 {[%emt 0:00:05]} 26. c3 {
[%emt 0:00:20]} Qb6 {[%emt 0:01:08]} 27. Bc2 {[%emt 0:01:49]} Bb7 {[%emt 0:00:
44]} 28. b3 {[%emt 0:03:09]} Nf5 {[%emt 0:01:13]} 29. Ra4 {[%emt 0:01:59]} Rfd8
{[%emt 0:01:57]} 30. h5 {[%emt 0:01:11]} Qc5 {[%emt 0:03:44]} 31. Rc4 {[%emt 0:
00:30]} Qb5 {[%emt 0:02:07]} 32. Rg4 {[%emt 0:04:25]} Rc5 {[%emt 0:01:14]} 33.
g6 {[%emt 0:01:26]} Re5 {[%emt 0:00:13]} 34. gxf7+ {[%emt 0:00:15]} Kxf7 {
[%emt 0:00:12]} 35. Rf1 {[%emt 0:03:56]} Qe2 {[%emt 0:00:15]} 36. Bf4 {[%emt 0:
00:50]} Rc5 {[%emt 0:00:41]} 37. Bg5 {[%emt 0:00:35]} Rxc3 {[%emt 0:01:29]} 38.
Rg3 {[%emt 0:00:49]} Nxg3 {[%emt 0:00:58]} 39. fxg3+ {[%emt 0:00:05]} Kg8 {
[%emt 0:00:06]} 40. Bb1 {[%emt 0:01:56]} Rd1 {[%emt 0:00:42]} 41. Qxe6+ {
[%emt 0:00:35]} Qxe6 {[%emt 0:00:10]} 0-1